bitfinex/quotes_ETHUSD_20220308
["timestamp","ask_amount","ask_price","bid_price","bid_amount"]
[1646724779167,0.00500903,2526.9,2526.7,2.97875]
[1646724779366,0.00500903,2526.9,2526.7,2.68864506]
[1646724779570,0.72024911,2527.8,2527.3,0.00157004]
[1646724779769,1.70805709,2527.8,2527.3,0.00157004]
[1646724779968,0.98945,2527.7,2527.3,0.00157004]
[1646724780771,2.9683,2527.7,2527.4,0.98938]
[1646724781026,0.3,2527.8,2527.4,0.98938]
[1646724781214,1.93702709,2528.1,2527.5,3.5]
[1646724781414,2.69682709,2528.2,2527.5,4.3528]
[1646724781618,1.9782,2528.2,2527.5,5.3528]
[1646724782015,1.9782,2528.2,2527.5,4.3528]
[1646724782214,0.98915,2527.9,2527.6,0.98915]
[1646724782620,1.28915,2527.9,2527.6,0.98915]
[1646724783023,0.98915,2527.9,2527.6,0.98915]
[1646724783319,1.28915,2527.9,2527.6,0.98915]
[1646724783518,0.98915,2527.9,2527.6,0.98915]
[1646724783719,1.28915,2527.9,2527.6,0.98915]
[1646724783920,1.29432299,2527.9,2527.6,0.98915]
[1646724784121,0.99432299,2527.9,2527.6,0.98915]
[1646724784319,0.99432299,2527.9,2527.6,5.7782122]
[1646724784320,0.30517299,2527.9,2527.6,5.7782122]
[1646724784520,0.00517299,2527.9,2527.6,6.1760122]
[1646724784771,0.00517299,2527.9,2527.6,7.1760122]
[1646724784968,0.00162202,2528.4,2527.6,7.1760122]
[1646724784969,0.00162202,2528.4,2527.6,7.88590726]
[1646724785168,0.00355152,2527.9,2527.6,9.11928879]
[1646724785968,0.98893,2528.4,2527.6,9.11928879]
[1646724786369,0.00355152,2527.9,2527.7,2.96682]
[1646724786573,0.00355152,2527.9,2527.7,4.9447023]
[1646724786773,0.00355152,2527.9,2527.7,2.96682]
[1646724786970,0.21359121,2527.9,2527.7,2.96682]
[1646724787169,0.00355152,2527.9,2527.7,2.96682]
[1646724787373,2.22813,2528.4,2527.7,6.46682]
[1646724787575,0.00517723,2527.9,2527.7,2.96682]
[1646724787773,0.00517723,2527.9,2527.8,1.83045742]
[1646724788616,0.99057202,2528.5,2527.8,1.83045742]
[1646724788815,0.99057202,2528.5,2527.9,3.80827442]
[1646724788816,0.0051772,2528.0,2527.9,3.80827442]
[1646724789718,1.28899,2528.4,2528.0,0.3]
[1646724789917,0.02070542,2528.5,2528.1,1.83047742]
[1646724790119,0.02070542,2528.5,2528.2,0.84151742]
[1646724790320,0.02070542,2528.5,2528.2,2.81908742]
[1646724790517,0.02070542,2528.5,2528.3,0.84151742]
[1646724790718,0.02070542,2528.5,2528.3,1.14151742]
[1646724790917,0.98879,2528.9,2528.4,0.98877]
[1646724791118,0.00355152,2528.5,2528.4,0.98877]
[1646724791620,0.00355152,2528.5,2528.4,1.82757146]
[1646724792018,0.00162202,2529.1,2528.4,0.98877]
[1646724792270,1.23087315,2529.1,2528.4,0.98877]
[1646724792472,0.74239036,2529.0,2528.4,0.98877]
[1646724793072,1.73112036,2529.0,2528.4,0.98877]
[1646724793279,0.74239036,2528.9,2528.4,0.98877]
[1646724793974,4.24239036,2528.9,2528.4,0.98877]
[1646724794174,0.74239036,2528.8,2528.4,0.98877]
[1646724794379,0.98899,2528.6,2528.4,0.98877]
[1646724794579,1.0627767,2528.5,2528.3,1.97754]
[1646724794778,1.0627767,2528.5,2528.0,2.11625997]
[1646724794779,3.5,2528.4,2528.2,0.98907]
[1646724794979,1.0627767,2528.5,2528.2,0.98907]
[1646724795178,1.3627767,2528.5,2528.2,0.98907]
[1646724795479,4.5627767,2528.5,2528.2,0.98907]
[1646724795878,4.56785581,2528.5,2528.2,0.98907]
[1646724796119,7.53513581,2528.5,2528.2,0.98907]
[1646724796318,7.83513581,2528.5,2528.2,0.98907]
[1646724796521,11.33513581,2528.5,2528.2,0.98907]
[1646724796719,7.83513581,2528.5,2528.2,0.98907]
[1646724796922,6.8409867,2528.5,2528.2,0.98907]
[1646724797120,6.8409867,2528.5,2528.0,1.97806]
[1646724797121,4.0,2528.4,2528.0,1.97806]
[1646724797326,4.24142855,2528.3,2527.5,0.1976]
[1646724797522,1.73064855,2528.2,2527.5,0.1976]
[1646724797722,0.21197998,2528.1,2527.8,1.97826]
[1646724797925,0.21197998,2528.1,2527.3,0.19917004]
[1646724797926,0.2285787,2528.0,2527.3,0.19917004]
[1646724798123,0.88543599,2527.5,2527.3,0.00157004]
[1646724798423,1.13020455,2527.5,2527.3,0.00157004]
[1646724798625,3.5,2527.4,2527.3,0.00157004]
[1646724799624,0.00490118,2527.5,2527.3,0.84851838]
[1646724799869,0.00490118,2527.5,2527.3,0.00157004]
[1646724800471,4.48933,2527.6,2527.3,0.00157004]
[1646724800674,0.98933,2527.6,2527.3,0.00157004]
[1646724800873,0.00490115,2527.5,2527.3,0.00157004]
[1646724801475,0.00490115,2527.5,2527.4,0.98934]
[1646724801675,0.98933,2527.6,2527.4,0.98934]
[1646724801874,1.9787,2527.7,2527.4,0.98934]
[1646724801875,0.3,2527.7,2527.4,0.98934]
[1646724802077,0.00490115,2527.5,2527.4,0.98934]
[1646724802274,0.00490115,2527.5,2527.4,1.8242916]
[1646724802879,0.98927,2527.7,2527.4,0.8349516]
[1646724803079,0.98927,2527.7,2527.3,1.98014004]
[1646724803080,4.48927,2527.7,2527.3,0.00157004]
[1646724803379,4.48927,2527.7,2527.3,0.83715171]
[1646724803380,1.00686892,2527.4,2527.3,0.83715171]
[1646724803628,1.00686892,2527.4,2527.3,0.00157004]
[1646724806030,4.16320742,2527.4,2527.3,0.00157004]
[1646724806432,3.1563385,2527.4,2527.3,0.00157004]
[1646724808676,3.1563385,2527.4,2527.3,0.83757863]
[1646724811719,4.08890488,2527.4,2527.3,0.83757863]
[1646724812121,4.08890488,2527.4,2527.3,0.00157004]
[1646724813727,4.08890488,2527.4,2527.3,0.83757863]
[1646724814228,4.08890488,2527.4,2527.3,0.00157004]
[1646724814770,4.08890488,2527.4,2527.3,1.11403861]
[1646724816373,4.08890488,2527.4,2527.3,0.00157004]
[1646724817274,4.08890488,2527.4,2527.3,1.96122292]
[1646724817275,3.1563385,2527.4,2527.3,1.96122292]
[1646724817479,3.1563385,2527.4,2527.3,1.11403861]
[1646724818080,3.1563385,2527.4,2527.3,1.96155215]
[1646724818621,3.1563385,2527.4,2527.3,1.96156054]
[1646724819620,1.43517249,2527.4,2527.3,1.96156054]
[1646724822122,1.38517249,2527.4,2527.3,1.96156054]
[1646724822376,5.65696559,2527.4,2527.3,1.11403861]
[1646724823174,9.15696559,2527.4,2527.3,1.11403861]
[1646724823575,5.65696559,2527.4,2527.3,0.00157004]
[1646724824074,5.65696559,2527.4,2527.3,1.11403861]
[1646724824675,1.38517249,2527.4,2527.3,1.94260622]
[1646724827221,1.38517249,2527.4,2527.3,2.24260622]
[1646724827828,0.0049231,2527.5,2527.4,2.10177857]
[1646724828026,0.0049231,2527.5,2527.4,2.93034618]
[1646724828227,3.29100477,2527.9,2527.4,2.93034618]
[1646724828425,0.0049231,2527.5,2527.4,2.93034618]
[1646724828627,0.0049231,2527.5,2527.4,3.23801236]
[1646724829426,3.29100477,2527.9,2527.4,3.23801236]
[1646724829626,0.00492304,2527.6,2527.5,1.94870236]
[1646724830171,3.16450308,2527.6,2527.5,1.94870236]
[1646724830570,3.15958004,2527.6,2527.5,1.94870236]
[1646724838175,3.90884013,2527.6,2527.5,1.94870236]
[1646724839073,0.74926009,2527.6,2527.5,1.94870236]
[1646724840475,4.24926009,2527.6,2527.5,1.94870236]
[1646724840688,7.43387682,2527.6,2527.5,1.11246857]
[1646724841120,7.43387682,2527.6,2527.3,0.00157004]
[1646724841121,0.60854935,2527.4,2527.3,0.00157004]
[1646724841323,1.35780944,2527.4,2527.3,0.00157004]
[1646724841523,1.35780944,2527.4,2527.3,0.60033572]
[1646724841720,1.35780944,2527.4,2527.3,1.47372416]
[1646724842327,4.85780944,2527.4,2527.3,1.47372416]
[1646724842527,8.03208214,2527.4,2527.3,0.60033572]
[1646724842727,4.53208214,2527.4,2527.3,0.60033572]
[1646724843432,4.53208214,2527.4,2527.3,0.00157004]
[1646724844327,4.53208214,2527.4,2527.3,0.60033572]
[1646724844532,4.53208214,2527.4,2527.3,1.48904351]
[1646724845370,4.53208214,2527.4,2527.3,0.60033572]
[1646724845570,4.53208214,2527.4,2527.3,0.00157004]
[1646724847774,4.53208214,2527.4,2527.3,1.47985407]
[1646724848374,4.53208214,2527.4,2527.3,0.60033572]
[1646724849021,4.53208214,2527.4,2527.3,1.47968783]
[1646724849219,4.53208214,2527.4,2527.3,1.77968783]
[1646724849820,3.78282205,2527.4,2527.3,1.77968783]
[1646724850220,3.78282205,2527.4,2527.3,2.17748783]
[1646724850621,0.01968868,2528.0,2527.5,5.5]
[1646724850821,0.01968868,2528.0,2527.8,0.99656568]
[1646724851019,0.01968868,2528.0,2527.9,1.87591779]
[1646724851223,0.00162202,2528.4,2527.9,3.60491717]
[1646724851428,0.00162202,2528.4,2528.2,0.99656568]
[1646724851622,0.00162202,2528.8,2528.5,0.3978]
[1646724851820,0.15847,2529.1,2528.7,0.59876568]
[1646724852024,0.15847,2529.1,2528.9,0.59876568]
[1646724852271,0.08576578,2529.3,2529.0,0.59876568]
[1646724852876,0.08576578,2529.3,2529.0,1.58735568]
[1646724853574,0.0906967,2529.3,2529.0,1.58735568]
[1646724853877,0.0906967,2529.3,2529.0,2.57592568]
[1646724854677,0.08576578,2529.3,2529.0,2.57592568]
[1646724854877,0.0906967,2529.3,2529.0,2.57592568]
[1646724855478,0.0906967,2529.3,2529.0,1.58735568]
[1646724855776,0.08576578,2529.3,2529.0,1.58735568]
[1646724856029,0.34874527,2529.3,2529.0,1.58735568]
[1646724856619,0.25947842,2529.2,2529.0,1.58735568]
[1646724856820,0.21489603,2529.2,2529.0,1.58735568]
[1646724857021,0.71862709,2529.2,2529.0,0.59876568]
[1646724857626,0.71862709,2529.1,2529.0,0.59876568]
[1646724858026,1.66165836,2529.1,2529.0,0.59876568]
[1646724858226,1.01862709,2529.2,2529.0,0.59876568]
[1646724858426,1.02355435,2529.2,2529.0,0.59876568]
[1646724858827,0.72355435,2529.2,2529.0,0.59876568]
[1646724859432,0.71862709,2529.2,2529.0,0.59876568]
[1646724859628,0.72355432,2529.2,2529.0,0.59876568]
[1646724860672,0.71862709,2529.2,2529.0,0.59876568]
[1646724860874,0.72355432,2529.2,2529.0,0.59876568]
[1646724861074,0.72355432,2529.2,2528.8,1.84558596]
[1646724861874,0.71862709,2529.2,2528.8,1.84558596]
[1646724862074,0.00492784,2529.1,2528.9,0.98891]
[1646724862679,0.00492784,2529.1,2528.8,1.84558596]
[1646724863079,3.0,2529.0,2527.5,6.24823]
[1646724863280,1.20962709,2528.9,2528.1,0.98923]
[1646724863533,1.20962709,2528.9,2527.8,0.00466862]
[1646724863926,0.97943836,2528.5,2527.8,0.00466862]
[1646724864127,0.97943836,2528.5,2527.4,0.9893]
[1646724864329,0.98927,2528.4,2527.4,0.9893]
[1646724864530,0.98927,2528.4,2527.8,0.00466862]
[1646724864727,1.28927,2528.4,2527.8,0.00466862]
[1646724865128,0.98927,2528.4,2527.8,0.00466862]
[1646724865330,0.98927,2528.4,2527.3,0.00157004]
[1646724865331,0.8888,2528.3,2527.3,0.00157004]
[1646724865531,0.98958,2528.1,2527.3,0.00157004]
[1646724865732,3.98958,2528.1,2527.8,0.00466836]
[1646724865936,3.0,2527.9,2527.8,6.836e-05]
[1646724866137,17.64966104,2527.9,2527.8,6.836e-05]
[1646724866333,18.64966104,2527.9,2527.8,6.836e-05]
[1646724866532,18.64966104,2527.9,2527.3,0.00157004]
[1646724866533,24.81011489,2527.9,2527.3,0.00157004]
[1646724866732,0.98982,2527.6,2527.3,0.00157004]
[1646724867304,0.1978,2527.5,2527.3,0.00157004]
[1646724867503,0.1478,2527.5,2527.3,0.00157004]
[1646724867705,0.88031511,2527.4,2527.3,0.00157004]
[1646724871037,2.48759,2527.6,2527.3,0.00157004]
[1646724871232,1.18759,2527.6,2527.3,0.98962]
[1646724872134,0.98979,2527.6,2527.3,0.98962]
[1646724872332,0.66783845,2527.5,2527.3,0.98962]
[1646724874032,0.66783845,2527.5,2527.3,0.99479928]
[1646724874974,0.66783845,2527.5,2527.3,0.98962]
[1646724875173,2.1191013,2527.6,2527.3,0.98962]
[1646724875376,3.1191013,2527.6,2527.3,0.99479928]
[1646724875579,2.1191013,2527.6,2527.3,0.99479928]
[1646724875776,3.1191013,2527.6,2527.3,0.99479928]
[1646724875979,2.1191013,2527.6,2527.3,0.99479928]
[1646724876176,2.1191013,2527.6,2527.3,0.98962]
[1646724876177,0.98979,2527.6,2527.3,0.98962]
[1646724876377,0.98979,2527.6,2527.3,0.99479925]
[1646724876577,0.3,2527.8,2527.3,0.99479925]
[1646724876777,0.63886048,2527.7,2527.3,0.99479925]
[1646724876979,0.63886048,2527.6,2527.3,0.99479925]
[1646724877180,0.63886048,2527.8,2527.3,0.99479925]
[1646724877382,0.85978568,2527.7,2527.3,0.98962]
[1646724877580,1.19561206,2527.8,2527.3,0.98962]
[1646724877581,0.88400541,2527.6,2527.3,0.98962]
[1646724877779,0.23633751,2527.5,2527.4,0.00518187]
[1646724877980,0.22286825,2527.5,2527.4,0.00518187]
[1646724878380,0.24033972,2527.6,2527.4,0.00518187]
[1646724878635,0.24033972,2527.6,2527.3,0.98962]
[1646724878833,0.24033972,2527.6,2527.3,0.99460238]
[1646724879736,2.0936946,2527.7,2527.3,0.99460238]
[1646724880038,0.63872663,2527.6,2527.3,0.99460238]
[1646724881041,0.63872663,2527.6,2527.3,0.19404521]
[1646724881244,0.63872663,2527.6,2527.3,0.19902759]
[1646724882275,4.13872663,2527.6,2527.3,0.19404521]
[1646724882479,3.5,2527.6,2527.3,0.19864889]
[1646724882680,4.5,2527.6,2527.3,0.19864889]
[1646724883080,4.5,2527.6,2526.7,1.9795]
[1646724883081,3.0,2527.4,2526.7,1.9795]
[1646724883280,3.0,2527.0,2525.9,1.6087]
[1646724883480,3.0,2527.0,2526.0,0.96343197]
[1646724883481,1.11498658,2526.9,2526.0,0.96343197]
[1646724883680,0.62398658,2526.8,2526.0,0.96343197]
[1646724883880,1.11498658,2526.8,2526.0,0.96343197]
[1646724884181,0.9900951,2526.7,2526.0,0.96343197]
[1646724884380,0.9900951,2526.7,2526.3,1.98008]
[1646724884581,1.2900951,2526.7,2526.3,1.98008]
[1646724885185,1.9801751,2526.7,2526.3,1.98008]
[1646724885387,4.68011634,2526.6,2526.3,1.98008]
[1646724885586,8.18011634,2526.6,2526.3,1.98008]
[1646724886035,8.18011634,2526.6,2526.4,0.00465319]
[1646724886729,8.18011634,2526.6,2526.4,0.99468319]
[1646724886928,4.68011634,2526.6,2526.4,0.99468319]
[1646724887128,4.68011634,2526.6,2526.4,0.99003]
[1646724887331,4.68011634,2526.6,2526.4,0.99468319]
[1646724888331,4.68011634,2526.6,2526.4,0.99003]
[1646724888533,4.68011634,2526.6,2526.4,0.99468319]
[1646724889434,3.5,2526.6,2526.4,0.99003]
[1646724889635,3.5,2526.6,2526.4,0.99466471]
[1646724890587,4.48989,2527.2,2526.4,0.99466471]
[1646724890588,0.40053149,2527.1,2526.4,6.45573]
[1646724890788,0.20273149,2527.1,2526.4,6.45573]
[1646724890987,8.9019,2527.4,2526.4,6.46036471]
[1646724891190,0.62269869,2527.3,2526.4,6.46036471]
[1646724891393,3.76171092,2527.2,2526.4,6.46036471]
[1646724891593,0.25860445,2527.1,2526.4,6.46036471]
[1646724891793,0.23008877,2526.9,2526.4,6.45573]
[1646724891991,0.24700429,2526.8,2526.4,6.45573]
[1646724892192,4.5208615,2527.2,2526.7,0.99441407]
[1646724892193,0.27842434,2527.1,2526.7,0.99441407]
[1646724892396,0.27323999,2527.1,2526.7,0.99441407]
[1646724892997,0.27323999,2527.1,2526.7,0.98978]
[1646724893396,0.40119137,2527.5,2526.8,0.00463668]
[1646724893630,0.27098037,2527.2,2526.9,0.9897]
[1646724893832,0.1978,2527.5,2526.9,0.9897]
[1646724894029,1.1994681,2527.1,2526.9,0.9897]
[1646724894231,0.2095481,2527.1,2526.9,0.9897]
[1646724894531,4.48981,2527.3,2526.9,0.99433641]
[1646724894730,5.48981,2527.3,2526.9,0.99433641]
[1646724895131,5.48981,2527.3,2526.9,0.00463641]
[1646724895331,6.4797092,2527.3,2526.9,0.00463641]
[1646724895539,7.4695692,2527.3,2526.8,1.9794]
[1646724895732,7.4695692,2527.3,2527.0,0.00463632]
[1646724895931,7.7695692,2527.3,2527.0,0.00463632]
[1646724896132,6.77967,2527.3,2527.0,0.00463632]
[1646724896431,0.61277146,2527.2,2527.0,0.00463632]
[1646724896633,0.61277146,2527.2,2526.5,1.97975]
[1646724896833,3.5,2527.1,2527.0,0.00463581]
[1646724897034,4.11286345,2527.1,2527.0,0.00463581]
[1646724897276,5.31066345,2527.1,2527.0,0.00463581]
[1646724897877,5.31066345,2527.1,2526.5,1.97975]
[1646724898080,0.61286345,2527.0,2526.9,0.00463599]
[1646724898279,4.11286345,2527.0,2526.9,0.00463599]
[1646724898678,5.11286345,2527.0,2526.9,0.00463599]
[1646724899077,5.51066345,2527.0,2525.8,0.3]
[1646724899279,0.61286345,2526.9,2525.9,0.97398178]
[1646724899479,3.5,2527.0,2526.8,0.00463618]
[1646724899680,3.8,2527.0,2526.8,0.00463618]
[1646724900383,3.8,2527.0,2526.4,1.97977]
[1646724900586,3.8,2527.0,2526.8,0.00464373]
[1646724901034,3.8,2527.0,2526.8,0.00113056]
[1646724901524,3.8,2527.0,2526.2,0.98359375]
[1646724901725,3.8,2527.0,2526.8,0.00464373]
[1646724901924,0.3,2527.0,2526.8,0.00464373]
[1646724902126,7.2749,2527.3,2526.8,0.00464373]
[1646724902329,4.08889862,2527.2,2526.8,0.00464373]
[1646724902528,4.08889862,2527.2,2526.3,1.34220653]
[1646724902529,0.58889862,2527.1,2526.3,1.34220653]
[1646724902728,0.58889862,2527.1,2526.4,0.99960802]
[1646724903133,0.58889862,2527.1,2526.6,1.97943]
[1646724903330,0.78669862,2527.1,2526.3,0.94440653]
[1646724903530,0.58889862,2527.0,2526.4,1.00040545]
[1646724903931,0.58889862,2527.0,2526.4,1.39820545]
[1646724904129,0.1978,2527.1,2526.5,1.00040545]
[1646724904330,0.1978,2527.1,2526.6,0.98981]
[1646724904331,0.58939818,2527.0,2526.6,0.98981]
[1646724904775,0.23149552,2526.8,2526.6,0.98981]
[1646724904977,0.23027647,2526.9,2526.6,0.98981]
[1646724905175,0.2641591,2526.9,2526.6,0.98981]
[1646724905376,0.23618402,2526.8,2526.6,0.98981]
[1646724905577,0.21843072,2526.9,2526.6,0.98981]
[1646724905780,0.26037405,2526.8,2526.7,0.3]
[1646724905979,3.5,2527.2,2526.7,4.27046254]
[1646724905980,3.75160454,2527.2,2526.7,4.27046254]
[1646724906178,0.59009926,2527.1,2526.7,3.2689251]
[1646724906376,5.38882709,2527.8,2527.0,0.9896]
[1646724906377,0.21354743,2527.5,2527.0,0.9896]
[1646724906577,0.59007731,2527.4,2527.0,2.3811]
[1646724907279,0.59007731,2527.4,2527.0,1.3915]
[1646724907682,0.59007731,2527.4,2527.0,1.1897]
[1646724907881,0.59007731,2527.4,2526.8,0.98972]
[1646724908534,0.59007731,2527.4,2526.7,0.00489292]
[1646724908535,5.47971,2527.3,2526.7,0.00489292]
[1646724908724,5.47971,2527.3,2526.8,1.00324725]
[1646724908725,0.80183983,2527.2,2526.8,1.00324725]
[1646724908925,0.22336638,2526.9,2526.8,1.00324725]
[1646724909124,6.77971,2527.3,2526.8,1.00324725]
[1646724909125,1.57473498,2527.0,2526.8,1.00324725]
[1646724909327,0.59007731,2526.9,2526.8,1.00324725]
[1646724909728,0.59007731,2527.0,2526.8,1.00324725]
[1646724909926,0.59007731,2526.9,2526.8,1.00324725]
[1646724910129,1.57986731,2527.2,2526.8,1.00324725]
[1646724910329,0.59007731,2527.1,2526.8,1.00324725]
[1646724910728,0.59007731,2527.1,2526.7,0.99470247]
[1646724910929,0.59007731,2527.1,2526.7,0.00489247]
[1646724910930,3.5,2527.0,2526.7,0.00489247]
[1646724911128,1.57999731,2526.9,2526.4,1.97974]
[1646724911327,1.57999731,2526.9,2526.7,0.0048926]
[1646724911328,4.09007731,2526.8,2526.7,0.0048926]
[1646724911928,0.59007731,2526.8,2526.7,0.0048926]
[1646724912383,0.59007731,2526.8,2525.9,2.279755]
[1646724912583,1.58004731,2526.8,2526.6,0.00470975]
[1646724912782,0.59007731,2526.7,2526.6,0.00470975]
[1646724913487,0.59007731,2526.7,2526.1,1.97987]
[1646724913683,0.59007731,2526.7,2526.2,1.30573439]
[1646724913684,4.09007731,2526.7,2526.2,1.30573439]
[1646724913884,0.59007731,2526.6,2526.5,0.00470981]
[1646724914684,0.59007731,2526.6,2525.9,1.98004]
[1646724914884,0.59007731,2526.5,2526.4,0.00470987]
[1646724915284,0.59090034,2526.5,2526.4,1.01041643]
[1646724915487,6.019,2527.1,2526.4,1.01041643]
[1646724915686,0.87969875,2527.0,2526.5,1.00570656]
[1646724915886,0.57969875,2526.9,2526.6,1.00570656]
[1646724916136,0.57969875,2526.8,2526.7,1.00570656]
[1646724916333,0.57969875,2527.1,2526.3,1.01031685]
[1646724916534,0.57969875,2527.1,2526.5,1.9795084]
[1646724916731,0.57969875,2527.1,2526.6,1.00570656]
[1646724916933,0.57969875,2527.1,2526.6,1.30570656]
[1646724917133,0.57969875,2527.0,2526.7,1.00570656]
[1646724917335,0.98964,2527.3,2526.7,1.01031666]
[1646724917536,0.57924198,2527.2,2526.7,1.01031666]
[1646724917955,0.57924198,2527.2,2526.7,1.99996666]
[1646724918136,0.57924198,2527.1,2526.8,1.00570656]
[1646724918335,0.57924198,2527.0,2526.8,1.00570656]
[1646724918535,1.08673419,2527.4,2526.8,1.00570656]
[1646724918739,0.57716535,2527.3,2526.8,1.00570656]
[1646724919038,0.57716535,2527.4,2526.8,1.99537656]
[1646724919237,0.57716535,2527.3,2526.9,1.00570656]
[1646724919436,0.57716535,2527.2,2526.9,1.00570656]
[1646724919638,0.20252611,2527.1,2527.0,1.00570656]
[1646724919878,0.20252611,2527.1,2526.8,1.00570656]
[1646724920078,0.20252611,2527.1,2526.9,1.00570656]
[1646724920283,0.20252611,2527.1,2526.9,1.30570656]
[1646724920481,0.20252611,2527.1,2527.0,1.00570656]
[1646724920683,0.5671116,2527.5,2527.0,1.00570656]
[1646724921483,0.98975,2527.2,2527.0,1.00570656]
[1646724921685,0.71052188,2526.9,2526.7,0.00462945]
[1646724921884,0.5671116,2526.8,2526.4,0.3]
[1646724922083,0.5671116,2526.8,2526.5,1.02879422]
[1646724922284,4.0671116,2526.8,2526.7,0.00462978]
[1646724922689,5.11246044,2526.8,2526.7,0.00462978]
[1646724922889,6.11246044,2526.8,2526.7,0.00462978]
[1646724923088,6.11246044,2526.8,2526.0,0.98996]
[1646724923289,0.5671116,2526.7,2526.1,1.0292507]
[1646724923543,0.5671116,2526.7,2526.6,0.00462586]
[1646724924338,4.0671116,2526.7,2526.4,0.98991]
[1646724924540,0.5671116,2526.6,2526.5,1.02929143]
[1646724924737,0.5671116,2526.6,2526.5,1.03391735]
[1646724925638,0.56555588,2526.6,2526.5,1.02929143]
[1646724927038,0.56555588,2526.6,2526.4,0.00462658]
[1646724927276,1.70042188,2526.9,2526.4,0.00462658]
[1646724927884,1.70042188,2526.9,2526.1,1.97976]
[1646724928083,1.70042188,2526.9,2526.1,2.96962]
[1646724928281,1.70042188,2526.9,2526.5,0.00462653]
[1646724929085,0.71052188,2526.9,2526.1,3.9594517]
[1646724929483,0.71052188,2526.9,2526.6,0.0046265]
[1646724929683,1.75374721,2526.9,2526.6,0.0046265]
[1646724930384,1.75374721,2526.9,2526.1,1.97976]
[1646724930583,1.75374721,2526.9,2526.6,0.00462637]
[1646724930784,0.2024024,2526.8,2526.6,0.00462637]
[1646724931040,0.20598796,2526.8,2526.6,0.00462637]
[1646724931230,0.25921181,2526.7,2526.6,0.00462637]
[1646724931636,0.25921181,2526.7,2526.2,0.3]
[1646724931830,0.25921181,2526.7,2526.6,0.0046264]
[1646724932030,0.26359534,2526.8,2526.6,0.0046264]
[1646724932231,0.22621095,2526.7,2526.6,0.0046264]
[1646724932635,3.57549134,2526.9,2526.6,0.0046264]
[1646724932935,0.23647829,2526.4,2526.1,1.97976]
[1646724934138,0.23647829,2526.4,2526.1,1.98438666]
[1646724934535,0.26381365,2526.8,2526.1,2.69898784]
[1646724934779,0.26949397,2526.7,2526.2,0.71460118]
[1646724934982,0.25926269,2526.5,2526.1,2.69898784]
[1646724935180,0.25926269,2526.5,2526.1,2.69436118]
[1646724935381,0.25926269,2526.5,2526.3,0.00462655]
[1646724935788,0.23147133,2526.8,2526.3,0.00462655]
[1646724935986,0.23375362,2526.7,2526.3,0.00462655]
[1646724936384,0.21630682,2526.8,2526.2,0.71460118]
[1646724936585,0.21630682,2526.8,2526.4,0.00462649]
[1646724936987,0.20800865,2526.7,2526.4,0.99450649]
[1646724937287,0.20817491,2526.7,2526.4,0.99450649]
[1646724937487,0.22197535,2526.8,2526.4,0.98988]
[1646724937687,0.22197535,2526.8,2526.1,2.96962]
[1646724937888,0.24464368,2526.7,2526.4,0.00462651]
[1646724938288,0.2486185,2526.5,2526.4,0.00462651]
[1646724938537,2.69043188,2526.9,2526.4,0.00462651]
[1646724938726,2.69043188,2526.9,2526.0,3.5]
[1646724938727,3.69043188,2526.9,2526.0,3.5]
[1646724938931,2.69043188,2526.9,2526.0,3.8]
[1646724939127,0.98996,2526.7,2526.4,0.00462651]
[1646724939330,1.28996,2526.7,2526.4,0.00462651]
[1646724939928,1.28996,2526.7,2526.0,4.1978]
[1646724940230,1.28996,2526.7,2526.4,0.00462651]
[1646724941229,1.28996,2526.7,2526.0,3.8]
[1646724941432,1.28996,2526.7,2526.4,0.0046265]
[1646724941832,3.64043188,2526.9,2526.7,0.42120253]
[1646724942684,3.64043188,2526.9,2526.7,0.42582889]
[1646724943482,0.96152474,2526.8,2526.7,0.42582889]
[1646724943683,0.96152474,2526.8,2526.7,0.42120253]
[1646724943882,0.96152474,2526.8,2526.7,0.42582889]
[1646724944784,0.96152474,2526.8,2526.7,0.42120253]
[1646724944984,2.01052188,2526.9,2526.7,0.42120253]
[1646724945284,0.71052188,2526.9,2526.7,0.42120253]
[1646724945685,0.71052188,2526.9,2526.8,1.04065179]
[1646724945889,1.26806455,2526.9,2526.8,1.04065179]
[1646724946728,2.23573637,2526.9,2526.8,1.04065179]
[1646724947132,4.21557637,2526.9,2526.8,1.04065179]
[1646724948735,3.24790455,2526.9,2526.8,1.04065179]
[1646724949339,1.26806455,2526.9,2526.8,4.54065179]
[1646724949792,3.3883,2527.6,2527.5,2.29850617]
[1646724949986,3.77451362,2527.8,2527.5,2.74530617]
[1646724950185,0.4978,2527.7,2527.5,3.04530617]
[1646724950386,0.4978,2527.7,2527.5,5.02482617]
[1646724950787,0.1978,2527.7,2527.5,5.02482617]
[1646724951185,0.1978,2527.7,2527.5,4.27802617]
[1646724951788,2.1772463,2527.7,2527.5,4.27802617]
[1646724952187,2.4772463,2527.7,2527.5,4.27802617]
[1646724953392,2.48217994,2527.7,2527.5,4.27802617]
[1646724953832,1.0,2528.1,2527.6,3.5]
[1646724954030,5.40642904,2528.2,2527.6,4.367]
[1646724954031,0.96431075,2528.2,2527.6,4.367]
[1646724954230,1.01972962,2528.4,2527.7,5.5]
[1646724954435,4.31440096,2529.0,2528.5,2.96705]
[1646724954436,1.84425,2529.0,2528.5,2.96705]
[1646724954633,0.1977,2528.9,2528.5,4.08435]
[1646724954831,0.1976,2529.1,2528.6,3.95577]
[1646724955033,0.1552,2529.2,2528.6,3.95577]
[1646724955230,0.1552,2529.2,2528.7,0.98901]
[1646724955632,0.313649,2529.2,2528.7,0.98901]
[1646724955936,0.1552,2529.2,2528.7,0.98901]
[1646724956337,0.9890436,2529.1,2528.7,0.98901]
[1646724956535,0.1977,2529.0,2528.7,1.97806]
[1646724956735,0.08586118,2529.3,2528.7,0.98901]
[1646724956934,0.0839789,2529.6,2528.7,3.00154]
[1646724957134,0.0839789,2529.6,2528.8,5.47772]
[1646724957386,0.2815789,2529.6,2528.9,0.98887]
[1646724957589,1.5704573,2529.6,2528.9,0.98887]
[1646724957787,0.3,2529.5,2528.9,1.97773]
[1646724957987,3.3,2529.5,2528.9,2.27773]
[1646724958186,15.44,2529.5,2528.9,1.97773]
[1646724958387,0.00352203,2529.4,2528.9,1.97773]
[1646724958990,0.96498593,2529.3,2528.9,1.97773]
[1646724959288,0.96498593,2529.3,2529.1,1.97812]
[1646724959289,2.25410493,2529.3,2529.1,1.97812]
[1646724959489,1.29430131,2529.3,2529.1,1.97812]
[1646724959689,0.30518231,2529.3,2529.1,1.97812]
[1646724959889,0.71911004,2529.2,2529.1,1.97812]
[1646724960289,1.02429235,2529.3,2529.1,1.97812]
[1646724960490,0.3,2529.3,2529.1,1.97812]
[1646724960689,0.30518231,2529.3,2529.1,1.97812]
[1646724961146,0.80308894,2529.6,2529.1,1.97812]
[1646724961350,0.80308894,2529.6,2529.2,1.97771]